[Event "Titled Tuesday Blitz December 06 Early 2022"]
[White "Omelja, Artem"]
[Black "Levine, David"]
[WhiteFideId "14119846"]
[BlackFideId "2011611"]
[WhiteElo "2404"]
[BlackElo "2190"]
[Result "1-0"]
[Round "01"]
[TimeControl "180+1"]
[Date "2022.12.07"]
[WhiteClock "0:00:04"]
[BlackClock "0:00:16"]

1. d4 {[%clk 0:02:44]}  d5 {[%clk 0:02:59]} 2. c4 {[%clk 0:01:28]}  dxc4 {[%clk 0:02:58]} 3. e3 {[%clk 0:01:27]}  e5 {[%clk 0:02:57]} 4. Bxc4 {[%clk 0:01:23]}  exd4 {[%clk 0:02:56]} 5. exd4 {[%clk 0:01:23]}  Bd6 {[%clk 0:02:56]} 6. Ne2 {[%clk 0:01:22]}  Nf6 {[%clk 0:02:56]} 7. O-O {[%clk 0:01:21]}  O-O {[%clk 0:02:55]} 8. Bf4 {[%clk 0:01:20]}  Re8 {[%clk 0:02:51]} 9. Bxd6 {[%clk 0:01:19]}  Qxd6 {[%clk 0:02:50]} 10. Nbc3 {[%clk 0:01:19]}  c6 {[%clk 0:02:45]} 11. h3 {[%clk 0:01:14]}  Bf5 {[%clk 0:02:39]} 12. Qd2 {[%clk 0:01:08]}  Nbd7 {[%clk 0:02:38]} 13. Bb3 {[%clk 0:01:07]}  Nb6 {[%clk 0:02:34]} 14. Rfe1 {[%clk 0:01:06]}  Rad8 {[%clk 0:02:33]} 15. Rad1 {[%clk 0:01:04]}  h6 {[%clk 0:02:28]} 16. a3 {[%clk 0:00:56]}  Bg6 {[%clk 0:02:18]} 17. Qf4 {[%clk 0:00:45]}  Qd7 {[%clk 0:02:10]} 18. Qg3 {[%clk 0:00:40]}  Nbd5 {[%clk 0:01:37]} 19. Nf4 {[%clk 0:00:27]}  Nxf4 {[%clk 0:01:33]} 20. Qxf4 {[%clk 0:00:27]}  Rxe1+ {[%clk 0:01:25]} 21. Rxe1 {[%clk 0:00:27]}  Qxd4 {[%clk 0:01:24]} 22. Qg3 {[%clk 0:00:21]}  Qb6 {[%clk 0:01:05]} 23. Ba2 {[%clk 0:00:18]}  Rd2 {[%clk 0:01:01]} 24. Re7 {[%clk 0:00:04]}  Rxb2 {[%clk 0:00:56]} 25. Qxg6 {[%clk 0:00:03]}  Qxf2+ {[%clk 0:00:51]} 26. Kh2 {[%clk 0:00:03]}  Qf4+ {[%clk 0:00:42]} 27. Qg3 {[%clk 0:00:04]}  Qxg3+ {[%clk 0:00:38]} 28. Kxg3 {[%clk 0:00:05]}  Rc2 {[%clk 0:00:38]} 29. Rxf7 {[%clk 0:00:03]}  Rxc3+ {[%clk 0:00:37]} 30. Kh2 {[%clk 0:00:03]}  Rxa3 {[%clk 0:00:33]} 31. Be6 {[%clk 0:00:03]}  Re3 {[%clk 0:00:27]} 32. Rxf6+ {[%clk 0:00:02]}  Kh7 {[%clk 0:00:25]} 33. Bf5+ {[%clk 0:00:02]}  g6 {[%clk 0:00:24]} 34. Rf7+ {[%clk 0:00:02]}  Kg8 {[%clk 0:00:23]} 35. Bxg6 {[%clk 0:00:03]}  Rb3 {[%clk 0:00:19]} 36. Rd7 {[%clk 0:00:03]}  a5 {[%clk 0:00:17]} 37. Bf7+ {[%clk 0:00:03]}  Kf8 {[%clk 0:00:16]} 38. Bxb3 {[%clk 0:00:04]} 1-0


[Site "https://www.chess.com"]

[Event "Titled Tuesday Blitz December 06 Early 2022"]
[White "Onslow, Alfie"]
[Black "Papp, Levente"]
[WhiteFideId "436976"]
[BlackFideId "751243"]
[WhiteElo "2015"]
[BlackElo "2380"]
[Result "0-1"]
[Round "01"]
[TimeControl "180+1"]
[Date "2022.12.07"]
[WhiteClock "0:00:10"]
[BlackClock "0:00:09"]

1. e4 {[%clk 0:02:51]}  e6 {[%clk 0:02:24]} 2. d3 {[%clk 0:02:40]}  d5 {[%clk 0:02:24]} 3. Nd2 {[%clk 0:02:35]}  Nf6 {[%clk 0:02:23]} 4. Ngf3 {[%clk 0:02:25]}  Bc5 {[%clk 0:02:22]} 5. e5 {[%clk 0:02:08]}  Nfd7 {[%clk 0:02:20]} 6. d4 {[%clk 0:02:05]}  Bb6 {[%clk 0:02:19]} 7. Bd3 {[%clk 0:02:03]}  c5 {[%clk 0:02:18]} 8. c3 {[%clk 0:02:03]}  Nc6 {[%clk 0:02:18]} 9. dxc5 {[%clk 0:01:55]}  Bc7 {[%clk 0:02:16]} 10. b4 {[%clk 0:01:53]}  Ncxe5 {[%clk 0:02:14]} 11. Nxe5 {[%clk 0:01:47]}  Nxe5 {[%clk 0:02:13]} 12. Bc2 {[%clk 0:01:48]}  O-O {[%clk 0:02:03]} 13. Nf3 {[%clk 0:01:44]}  Qf6 {[%clk 0:01:53]} 14. O-O {[%clk 0:01:38]}  Nxf3+ {[%clk 0:01:48]} 15. Qxf3 {[%clk 0:01:39]}  Qxf3 {[%clk 0:01:46]} 16. gxf3 {[%clk 0:01:40]}  e5 {[%clk 0:01:37]} 17. f4 {[%clk 0:01:40]}  exf4 {[%clk 0:01:29]} 18. Rd1 {[%clk 0:01:34]}  Re8 {[%clk 0:01:25]} 19. Ba4 {[%clk 0:01:21]}  Re6 {[%clk 0:01:18]} 20. Ba3 {[%clk 0:00:57]}  Rg6+ {[%clk 0:01:14]} 21. Kh1 {[%clk 0:00:56]}  Bg4 {[%clk 0:00:58]} 22. Rd3 {[%clk 0:00:56]}  Bf5 {[%clk 0:00:57]} 23. Rad1 {[%clk 0:00:57]}  h5 {[%clk 0:00:19]} 24. f3 {[%clk 0:00:49]}  Bxd3 {[%clk 0:00:18]} 25. Rxd3 {[%clk 0:00:50]}  Rg5 {[%clk 0:00:17]} 26. c6 {[%clk 0:00:40]}  b6 {[%clk 0:00:14]} 27. Bb3 {[%clk 0:00:31]}  Re8 {[%clk 0:00:14]} 28. Rd1 {[%clk 0:00:30]}  Re2 {[%clk 0:00:11]} 29. Bxd5 {[%clk 0:00:21]}  Rgg2 {[%clk 0:00:11]} 30. b5 {[%clk 0:00:18]}  Rxh2+ {[%clk 0:00:11]} 31. Kg1 {[%clk 0:00:18]}  Reg2+ {[%clk 0:00:12]} 32. Kf1 {[%clk 0:00:18]}  Rc2 {[%clk 0:00:12]} 33. Kg1 {[%clk 0:00:15]}  Rhg2+ {[%clk 0:00:12]} 34. Kf1 {[%clk 0:00:15]}  Rgf2+ {[%clk 0:00:10]} 35. Kg1 {[%clk 0:00:15]}  h4 {[%clk 0:00:09]} 36. Be7 {[%clk 0:00:11]}  h3 {[%clk 0:00:09]} 37. Bh4 {[%clk 0:00:12]}  h2+ {[%clk 0:00:09]} 38. Kh1 {[%clk 0:00:12]}  Rfd2 {[%clk 0:00:08]} 39. Rxd2 {[%clk 0:00:11]}  Rxd2 {[%clk 0:00:09]} 40. Be4 {[%clk 0:00:11]}  f6 {[%clk 0:00:05]} 41. c4 {[%clk 0:00:10]}  g5 {[%clk 0:00:06]} 42. Bd5+ {[%clk 0:00:10]}  Kg7 {[%clk 0:00:05]} 43. Be1 {[%clk 0:00:09]}  Rd1 {[%clk 0:00:06]} 44. Kxh2 {[%clk 0:00:10]}  Rxe1 {[%clk 0:00:06]} 45. Kh3 {[%clk 0:00:10]}  Re2 {[%clk 0:00:06]} 46. Kg4 {[%clk 0:00:11]}  Rxa2 {[%clk 0:00:06]} 47. Kf5 {[%clk 0:00:11]}  Re2 {[%clk 0:00:06]} 48. Be4 {[%clk 0:00:11]}  Kf7 {[%clk 0:00:07]} 49. Bd5+ {[%clk 0:00:10]}  Ke7 {[%clk 0:00:07]} 50. Kg6 {[%clk 0:00:10]}  Ra2 {[%clk 0:00:06]} 51. Kf5 {[%clk 0:00:10]}  Ra3 {[%clk 0:00:05]} 52. Kg4 {[%clk 0:00:09]}  a6 {[%clk 0:00:05]} 53. bxa6 {[%clk 0:00:08]}  Rxa6 {[%clk 0:00:06]} 54. Kf5 {[%clk 0:00:08]}  Ra5 {[%clk 0:00:06]} 55. Ke4 {[%clk 0:00:08]}  b5 {[%clk 0:00:06]} 56. cxb5 {[%clk 0:00:07]}  Rxb5 {[%clk 0:00:07]} 57. Bg8 {[%clk 0:00:06]}  Kd6 {[%clk 0:00:06]} 58. Bf7 {[%clk 0:00:05]}  f5+ {[%clk 0:00:07]} 59. Kd3 {[%clk 0:00:05]}  Re5 {[%clk 0:00:05]} 60. Be8 {[%clk 0:00:05]}  Re3+ {[%clk 0:00:05]} 61. Kd4 {[%clk 0:00:05]}  Rxf3 {[%clk 0:00:06]} 62. Bd7 {[%clk 0:00:05]}  g4 {[%clk 0:00:06]} 63. Bxf5 {[%clk 0:00:05]}  g3 {[%clk 0:00:06]} 64. Be4 {[%clk 0:00:06]}  Re3 {[%clk 0:00:07]} 65. Bg2 {[%clk 0:00:05]}  Re2 {[%clk 0:00:07]} 66. Bf3 {[%clk 0:00:06]}  Rf2 {[%clk 0:00:07]} 67. Be4 {[%clk 0:00:07]}  g2 {[%clk 0:00:08]} 68. Bxg2 {[%clk 0:00:07]}  Rxg2 {[%clk 0:00:08]} 69. Ke4 {[%clk 0:00:08]}  Rf2 {[%clk 0:00:09]} 70. Kd3 {[%clk 0:00:08]}  Kxc6 {[%clk 0:00:09]} 71. Ke4 {[%clk 0:00:09]}  Kc5 {[%clk 0:00:09]} 72. Kd3 {[%clk 0:00:10]}  Kd5 {[%clk 0:00:09]} 0-1


[Site "https://www.chess.com"]

[Event "Titled Tuesday Blitz December 06 Early 2022"]
[White "Osmonbekov, Talaibek"]
[Black "Kim, Sergey"]
[WhiteFideId "2017253"]
[BlackFideId "13700570"]
[WhiteElo "2135"]
[BlackElo "2622"]
[Result "0-1"]
[Round "01"]
[TimeControl "180+1"]
[Date "2022.12.07"]
[WhiteClock "0:00:01"]
[BlackClock "0:00:22"]

1. d4 {[%clk 0:02:58]}  Nf6 {[%clk 0:02:48]} 2. Bf4 {[%clk 0:02:49]}  g6 {[%clk 0:02:41]} 3. Nc3 {[%clk 0:02:49]}  d6 {[%clk 0:02:34]} 4. e3 {[%clk 0:02:48]}  Bg7 {[%clk 0:02:29]} 5. h4 {[%clk 0:02:47]}  h5 {[%clk 0:02:24]} 6. Nf3 {[%clk 0:02:39]}  O-O {[%clk 0:02:20]} 7. Qd2 {[%clk 0:02:39]}  c6 {[%clk 0:02:19]} 8. O-O-O {[%clk 0:02:36]}  Bg4 {[%clk 0:02:18]} 9. Be2 {[%clk 0:02:26]}  b5 {[%clk 0:02:17]} 10. Ng5 {[%clk 0:02:23]}  Qa5 {[%clk 0:02:10]} 11. f3 {[%clk 0:02:06]}  Bd7 {[%clk 0:02:04]} 12. g4 {[%clk 0:01:57]}  b4 {[%clk 0:02:01]} 13. Nb1 {[%clk 0:01:53]}  Qxa2 {[%clk 0:01:59]} 14. Qxb4 {[%clk 0:01:43]}  a5 {[%clk 0:01:39]} 15. Qa3 {[%clk 0:01:01]}  Qxa3 {[%clk 0:01:38]} 16. Nxa3 {[%clk 0:01:02]}  hxg4 {[%clk 0:01:37]} 17. fxg4 {[%clk 0:00:57]}  Bxg4 {[%clk 0:01:36]} 18. Bxg4 {[%clk 0:00:53]}  Nxg4 {[%clk 0:01:36]} 19. Rdg1 {[%clk 0:00:54]}  Nf6 {[%clk 0:01:34]} 20. Nc4 {[%clk 0:00:44]}  Nbd7 {[%clk 0:01:33]} 21. e4 {[%clk 0:00:33]}  Nh5 {[%clk 0:01:26]} 22. Be3 {[%clk 0:00:31]}  e5 {[%clk 0:01:20]} 23. dxe5 {[%clk 0:00:28]}  Nxe5 {[%clk 0:01:20]} 24. Nxd6 {[%clk 0:00:26]}  a4 {[%clk 0:01:16]} 25. Bc5 {[%clk 0:00:18]}  Rfb8 {[%clk 0:01:10]} 26. Ba3 {[%clk 0:00:16]}  Nf4 {[%clk 0:01:05]} 27. Rf1 {[%clk 0:00:14]}  Ne2+ {[%clk 0:00:58]} 28. Kd2 {[%clk 0:00:14]}  Ng3 {[%clk 0:00:54]} 29. Ngxf7 {[%clk 0:00:13]}  Nxh1 {[%clk 0:00:48]} 30. Nxe5 {[%clk 0:00:12]}  Bxe5 {[%clk 0:00:47]} 31. Rxh1 {[%clk 0:00:12]}  Bxd6 {[%clk 0:00:46]} 32. Bxd6 {[%clk 0:00:11]}  Rxb2 {[%clk 0:00:46]} 33. Rg1 {[%clk 0:00:10]}  Kh7 {[%clk 0:00:44]} 34. h5 {[%clk 0:00:07]}  gxh5 {[%clk 0:00:43]} 35. Be5 {[%clk 0:00:06]}  Rb5 {[%clk 0:00:42]} 36. Rg7+ {[%clk 0:00:04]}  Kh6 {[%clk 0:00:42]} 37. Bc3 {[%clk 0:00:04]}  a3 {[%clk 0:00:40]} 38. Rc7 {[%clk 0:00:03]}  Rc5 {[%clk 0:00:29]} 39. Bg7+ {[%clk 0:00:02]}  Kg6 {[%clk 0:00:29]} 40. Bd4 {[%clk 0:00:02]}  Rc4 {[%clk 0:00:26]} 41. Kd3 {[%clk 0:00:01]}  Rxd4+ {[%clk 0:00:24]} 42. Kxd4 {[%clk 0:00:02]}  a2 {[%clk 0:00:24]} 43. Rxc6+ {[%clk 0:00:02]}  Kg5 {[%clk 0:00:24]} 44. Rc5+ {[%clk 0:00:02]}  Kg4 {[%clk 0:00:25]} 45. Rc7 {[%clk 0:00:02]}  a1=Q+ {[%clk 0:00:24]} 46. Ke3 {[%clk 0:00:01]}  Ra3+ {[%clk 0:00:23]} 47. Kd2 {[%clk 0:00:01]}  Qd4+ {[%clk 0:00:22]} 0-1


[Site "https://www.chess.com"]

[Event "Titled Tuesday Blitz December 06 Early 2022"]
[White "Papasimakopoulos, Alexandros"]
[Black "Federzoni, Enzo"]
[WhiteFideId "4244125"]
[BlackFideId "2173301"]
[WhiteElo "2384"]
[BlackElo "2039"]
[Result "1-0"]
[Round "01"]
[TimeControl "180+1"]
[Date "2022.12.07"]
[WhiteClock "0:01:14"]
[BlackClock "0:00:14"]

1. d4 {[%clk 0:02:48]}  Nf6 {[%clk 0:02:44]} 2. c4 {[%clk 0:02:41]}  g6 {[%clk 0:02:27]} 3. Nc3 {[%clk 0:02:38]}  Bg7 {[%clk 0:02:03]} 4. e4 {[%clk 0:02:27]}  d6 {[%clk 0:01:53]} 5. f3 {[%clk 0:02:27]}  O-O {[%clk 0:01:53]} 6. Nge2 {[%clk 0:02:28]}  c6 {[%clk 0:01:53]} 7. Be3 {[%clk 0:02:29]}  a6 {[%clk 0:01:53]} 8. c5 {[%clk 0:02:29]}  b5 {[%clk 0:01:49]} 9. cxb6 {[%clk 0:02:29]}  Qxb6 {[%clk 0:01:49]} 10. Na4 {[%clk 0:02:30]}  Qc7 {[%clk 0:01:44]} 11. Rc1 {[%clk 0:02:22]}  Be6 {[%clk 0:01:36]} 12. Nec3 {[%clk 0:02:17]}  Qb7 {[%clk 0:01:32]} 13. Be2 {[%clk 0:02:14]}  Nbd7 {[%clk 0:01:32]} 14. O-O {[%clk 0:02:08]}  Nb6 {[%clk 0:01:30]} 15. b3 {[%clk 0:02:08]}  Nxa4 {[%clk 0:01:29]} 16. Nxa4 {[%clk 0:02:08]}  Rfc8 {[%clk 0:01:28]} 17. Qd2 {[%clk 0:02:08]}  Nd7 {[%clk 0:01:26]} 18. Rc2 {[%clk 0:02:05]}  d5 {[%clk 0:01:17]} 19. Rfc1 {[%clk 0:01:57]}  dxe4 {[%clk 0:01:16]} 20. fxe4 {[%clk 0:01:58]}  c5 {[%clk 0:01:15]} 21. d5 {[%clk 0:01:55]}  Ne5 {[%clk 0:01:02]} 22. Nxc5 {[%clk 0:01:44]}  Rxc5 {[%clk 0:00:52]} 23. Rxc5 {[%clk 0:01:43]}  Bg4 {[%clk 0:00:50]} 24. h3 {[%clk 0:01:40]}  Bxe2 {[%clk 0:00:49]} 25. Qxe2 {[%clk 0:01:40]}  h5 {[%clk 0:00:47]} 26. Rc7 {[%clk 0:01:39]}  Qb4 {[%clk 0:00:46]} 27. Bc5 {[%clk 0:01:35]}  Qa5 {[%clk 0:00:37]} 28. Bxe7 {[%clk 0:01:32]}  Bh6 {[%clk 0:00:36]} 29. Rc8+ {[%clk 0:01:21]}  Rxc8 {[%clk 0:00:35]} 30. Rxc8+ {[%clk 0:01:22]}  Kh7 {[%clk 0:00:36]} 31. Bf6 {[%clk 0:01:21]}  Qb6+ {[%clk 0:00:36]} 32. Qf2 {[%clk 0:01:17]}  Be3 {[%clk 0:00:14]} 33. Rh8# {[%clk 0:01:14]} 1-0


[Site "https://www.chess.com"]

[Event "Titled Tuesday Blitz December 06 Early 2022"]
[White "Postnikov, Daniil"]
[Black "Grot, Blazej"]
[WhiteFideId "4166329"]
[BlackFideId "21835845"]
[WhiteElo "2261"]
[BlackElo "1823"]
[Result "1/2-1/2"]
[Round "01"]
[TimeControl "180+1"]
[Date "2022.12.07"]
[WhiteClock "0:00:09"]
[BlackClock "0:00:05"]

1. e4 {[%clk 0:00:18]}  d6 {[%clk 0:02:55]} 2. d4 {[%clk 0:00:18]}  Nf6 {[%clk 0:02:55]} 3. Nc3 {[%clk 0:00:19]}  c6 {[%clk 0:02:54]} 4. Nf3 {[%clk 0:00:19]}  Qa5 {[%clk 0:02:54]} 5. Bd3 {[%clk 0:00:19]}  e5 {[%clk 0:02:55]} 6. dxe5 {[%clk 0:00:19]}  dxe5 {[%clk 0:02:55]} 7. O-O {[%clk 0:00:18]}  Bg4 {[%clk 0:02:53]} 8. h3 {[%clk 0:00:18]}  Bh5 {[%clk 0:02:53]} 9. g4 {[%clk 0:00:17]}  Bg6 {[%clk 0:02:52]} 10. Bg5 {[%clk 0:00:17]}  Nbd7 {[%clk 0:02:52]} 11. a3 {[%clk 0:00:14]}  Qb6 {[%clk 0:02:52]} 12. b4 {[%clk 0:00:14]}  Be7 {[%clk 0:02:42]} 13. Nh4 {[%clk 0:00:13]}  a5 {[%clk 0:02:19]} 14. b5 {[%clk 0:00:12]}  Nc5 {[%clk 0:02:14]} 15. bxc6 {[%clk 0:00:12]}  bxc6 {[%clk 0:02:12]} 16. Nf5 {[%clk 0:00:11]}  Bxf5 {[%clk 0:02:04]} 17. gxf5 {[%clk 0:00:12]}  h6 {[%clk 0:02:03]} 18. Be3 {[%clk 0:00:11]}  Qc7 {[%clk 0:01:59]} 19. Rb1 {[%clk 0:00:10]}  Rd8 {[%clk 0:01:53]} 20. Qe2 {[%clk 0:00:09]}  Nxd3 {[%clk 0:01:45]} 21. cxd3 {[%clk 0:00:10]}  Bxa3 {[%clk 0:01:45]} 22. Bb6 {[%clk 0:00:10]}  Qd7 {[%clk 0:01:37]} 23. Bxd8 {[%clk 0:00:10]}  Qxd8 {[%clk 0:01:38]} 24. Qa2 {[%clk 0:00:10]}  Bb4 {[%clk 0:01:37]} 25. Qc4 {[%clk 0:00:10]}  O-O {[%clk 0:01:35]} 26. Qxc6 {[%clk 0:00:08]}  Qxd3 {[%clk 0:01:35]} 27. Nd5 {[%clk 0:00:08]}  Nxe4 {[%clk 0:01:23]} 28. Nxb4 {[%clk 0:00:05]}  axb4 {[%clk 0:01:23]} 29. Rxb4 {[%clk 0:00:05]}  Ng5 {[%clk 0:01:21]} 30. h4 {[%clk 0:00:05]}  Nh3+ {[%clk 0:01:17]} 31. Kg2 {[%clk 0:00:05]}  Nf4+ {[%clk 0:01:17]} 32. Rxf4 {[%clk 0:00:05]}  exf4 {[%clk 0:01:16]} 33. Qf3 {[%clk 0:00:06]}  Qxf5 {[%clk 0:01:16]} 34. Re1 {[%clk 0:00:06]}  h5 {[%clk 0:01:13]} 35. Re4 {[%clk 0:00:06]}  Qg6+ {[%clk 0:01:10]} 36. Kh2 {[%clk 0:00:05]}  Rc8 {[%clk 0:00:58]} 37. Rxf4 {[%clk 0:00:06]}  Rc2 {[%clk 0:00:55]} 38. Rf5 {[%clk 0:00:06]}  Qd6+ {[%clk 0:00:51]} 39. Kh3 {[%clk 0:00:05]}  g6 {[%clk 0:00:46]} 40. Rg5 {[%clk 0:00:05]}  Qd7+ {[%clk 0:00:42]} 41. Kg2 {[%clk 0:00:06]}  Rc4 {[%clk 0:00:39]} 42. Rd5 {[%clk 0:00:06]}  Rg4+ {[%clk 0:00:37]} 43. Kf1 {[%clk 0:00:06]}  Qc7 {[%clk 0:00:32]} 44. Qd3 {[%clk 0:00:05]}  Qc1+ {[%clk 0:00:32]} 45. Ke2 {[%clk 0:00:05]}  Qh1 {[%clk 0:00:28]} 46. Rd8+ {[%clk 0:00:05]}  Kh7 {[%clk 0:00:26]} 47. Qc3 {[%clk 0:00:05]}  Qe4+ {[%clk 0:00:25]} 48. Kf1 {[%clk 0:00:05]}  Qc4+ {[%clk 0:00:17]} 49. Qxc4 {[%clk 0:00:05]}  Rxc4 {[%clk 0:00:18]} 50. Rd7 {[%clk 0:00:05]}  Kg7 {[%clk 0:00:18]} 51. Kg2 {[%clk 0:00:06]}  Rxh4 {[%clk 0:00:18]} 52. Kg3 {[%clk 0:00:07]}  Rg4+ {[%clk 0:00:19]} 53. Kf3 {[%clk 0:00:07]}  Rb4 {[%clk 0:00:18]} 54. Ra7 {[%clk 0:00:07]}  Rb5 {[%clk 0:00:18]} 55. Kg2 {[%clk 0:00:08]}  Rf5 {[%clk 0:00:19]} 56. Kg3 {[%clk 0:00:08]}  g5 {[%clk 0:00:18]} 57. Ra8 {[%clk 0:00:09]}  Kg6 {[%clk 0:00:17]} 58. f3 {[%clk 0:00:09]}  f6 {[%clk 0:00:16]} 59. Rg8+ {[%clk 0:00:10]}  Kf7 {[%clk 0:00:16]} 60. Rh8 {[%clk 0:00:09]}  Kg6 {[%clk 0:00:17]} 61. Kg2 {[%clk 0:00:10]}  g4 {[%clk 0:00:15]} 62. fxg4 {[%clk 0:00:10]}  hxg4 {[%clk 0:00:15]} 63. Kg3 {[%clk 0:00:11]}  Rg5 {[%clk 0:00:14]} 64. Rg8+ {[%clk 0:00:11]}  Kf5 {[%clk 0:00:14]} 65. Ra8 {[%clk 0:00:12]}  Kg6 {[%clk 0:00:14]} 66. Rg8+ {[%clk 0:00:11]}  Kh6 {[%clk 0:00:14]} 67. Rh8+ {[%clk 0:00:11]}  Kg7 {[%clk 0:00:14]} 68. Ra8 {[%clk 0:00:10]}  f5 {[%clk 0:00:15]} 69. Kf4 {[%clk 0:00:11]}  Rh5 {[%clk 0:00:14]} 70. Ra5 {[%clk 0:00:10]}  Kf6 {[%clk 0:00:07]} 71. Ra6+ {[%clk 0:00:10]}  Ke7 {[%clk 0:00:07]} 72. Ra7+ {[%clk 0:00:10]}  Ke6 {[%clk 0:00:08]} 73. Ra6+ {[%clk 0:00:11]}  Kd5 {[%clk 0:00:08]} 74. Ra5+ {[%clk 0:00:11]}  Kd4 {[%clk 0:00:09]} 75. Ra4+ {[%clk 0:00:11]}  Kd3 {[%clk 0:00:09]} 76. Ra3+ {[%clk 0:00:11]}  Kc4 {[%clk 0:00:07]} 77. Ra4+ {[%clk 0:00:12]}  Kb5 {[%clk 0:00:08]} 78. Ra1 {[%clk 0:00:11]}  Kb4 {[%clk 0:00:04]} 79. Ra8 {[%clk 0:00:11]}  Kc3 {[%clk 0:00:04]} 80. Ra3+ {[%clk 0:00:11]}  Kb2 {[%clk 0:00:04]} 81. Ra8 {[%clk 0:00:11]}  Kc2 {[%clk 0:00:05]} 82. Ra2+ {[%clk 0:00:10]}  Kd1 {[%clk 0:00:05]} 83. Ra1+ {[%clk 0:00:11]}  Ke2 {[%clk 0:00:06]} 84. Ra2+ {[%clk 0:00:11]}  Kf1 {[%clk 0:00:07]} 85. Ra1+ {[%clk 0:00:12]}  Kg2 {[%clk 0:00:07]} 86. Ra2+ {[%clk 0:00:12]}  Kh1 {[%clk 0:00:08]} 87. Ra1+ {[%clk 0:00:10]}  Kh2 {[%clk 0:00:08]} 88. Ra2+ {[%clk 0:00:10]}  Kh3 {[%clk 0:00:08]} 89. Ra1 {[%clk 0:00:10]}  g3 {[%clk 0:00:06]} 90. Rh1+ {[%clk 0:00:10]}  Kg2 {[%clk 0:00:05]} 91. Rxh5 {[%clk 0:00:11]}  Kf2 {[%clk 0:00:04]} 92. Rxf5 {[%clk 0:00:10]}  g2 {[%clk 0:00:05]} 93. Rg5 {[%clk 0:00:08]}  g1=Q {[%clk 0:00:04]} 94. Rxg1 {[%clk 0:00:09]}  Kxg1 {[%clk 0:00:05]} 1/2-1/2


[Site "https://www.chess.com"]

[Event "Titled Tuesday Blitz December 06 Early 2022"]
[White "Pranesh M"]
[Black "Vlassov, Nikolai"]
[WhiteFideId "35028600"]
[BlackFideId "4103360"]
[WhiteElo "2403"]
[BlackElo "2324"]
[Result "1-0"]
[Round "01"]
[TimeControl "180+1"]
[Date "2022.12.06"]
[WhiteClock "0:00:11"]
[BlackClock "0:00:23"]

1. e4 {[%clk 0:02:04]}  c5 {[%clk 0:02:57]} 2. Nf3 {[%clk 0:02:03]}  d6 {[%clk 0:02:57]} 3. d4 {[%clk 0:02:04]}  cxd4 {[%clk 0:02:56]} 4. Nxd4 {[%clk 0:02:05]}  Nf6 {[%clk 0:02:57]} 5. Nc3 {[%clk 0:02:05]}  g6 {[%clk 0:02:57]} 6. f3 {[%clk 0:02:05]}  a6 {[%clk 0:02:57]} 7. Be3 {[%clk 0:02:06]}  Nbd7 {[%clk 0:02:57]} 8. Qd2 {[%clk 0:02:06]}  Qc7 {[%clk 0:02:57]} 9. O-O-O {[%clk 0:02:07]}  b5 {[%clk 0:02:57]} 10. Kb1 {[%clk 0:02:05]}  Bb7 {[%clk 0:02:57]} 11. h4 {[%clk 0:02:04]}  h5 {[%clk 0:02:55]} 12. Bd3 {[%clk 0:01:57]}  Rc8 {[%clk 0:02:55]} 13. Nce2 {[%clk 0:01:53]}  Bg7 {[%clk 0:02:54]} 14. c3 {[%clk 0:01:51]}  Nb6 {[%clk 0:02:50]} 15. Nb3 {[%clk 0:01:45]}  Nfd7 {[%clk 0:02:47]} 16. Bd4 {[%clk 0:01:43]}  Ne5 {[%clk 0:02:45]} 17. Bc2 {[%clk 0:01:33]}  Nbc4 {[%clk 0:02:43]} 18. Qe1 {[%clk 0:01:31]}  O-O {[%clk 0:02:39]} 19. g4 {[%clk 0:01:28]}  Nxf3 {[%clk 0:02:34]} 20. Qg3 {[%clk 0:01:28]}  Nxd4 {[%clk 0:02:30]} 21. Nbxd4 {[%clk 0:01:29]}  d5 {[%clk 0:02:13]} 22. Qxc7 {[%clk 0:01:20]}  Rxc7 {[%clk 0:02:13]} 23. gxh5 {[%clk 0:01:21]}  dxe4 {[%clk 0:02:05]} 24. hxg6 {[%clk 0:01:21]}  Ne3 {[%clk 0:01:50]} 25. Rdg1 {[%clk 0:01:20]}  Nxc2 {[%clk 0:01:50]} 26. Kxc2 {[%clk 0:01:21]}  e3 {[%clk 0:01:49]} 27. Rh3 {[%clk 0:01:21]}  Be4+ {[%clk 0:01:48]} 28. Kd1 {[%clk 0:01:21]}  f5 {[%clk 0:01:44]} 29. Ke1 {[%clk 0:01:15]}  f4 {[%clk 0:01:18]} 30. Nxf4 {[%clk 0:00:55]}  Bxd4 {[%clk 0:01:10]} 31. Ne6 {[%clk 0:00:53]}  Bb6 {[%clk 0:01:04]} 32. Nxc7 {[%clk 0:00:52]}  Bxc7 {[%clk 0:01:04]} 33. h5 {[%clk 0:00:52]}  Bf4 {[%clk 0:00:49]} 34. h6 {[%clk 0:00:51]}  e5 {[%clk 0:00:49]} 35. g7 {[%clk 0:00:43]}  Rc8 {[%clk 0:00:44]} 36. Rh5 {[%clk 0:00:39]}  b4 {[%clk 0:00:41]} 37. Rg4 {[%clk 0:00:33]}  bxc3 {[%clk 0:00:38]} 38. bxc3 {[%clk 0:00:34]}  Bd3 {[%clk 0:00:31]} 39. h7+ {[%clk 0:00:18]}  Bxh7 {[%clk 0:00:30]} 40. Ke2 {[%clk 0:00:19]}  Rc7 {[%clk 0:00:23]} 41. Rxh7 {[%clk 0:00:11]} 1-0


[Site "https://www.chess.com"]